fUST/lending_fUST_20250729
["ID","MTS","AMOUNT","RATE_DAILY","PERIOD"]
[375927377,1753787443145,-460.0,0.00019452,2]
[375927379,1753787443155,-669.42,0.00019452,2]
[375927381,1753787443165,-460.0,0.00019452,2]
[375927383,1753787443175,-2563.68,0.00019452,2]
[375927385,1753787443184,-460.0,0.00019452,2]
[375927387,1753787443193,-460.0,0.00019452,2]
[375927389,1753787443202,-460.0,0.00019452,2]
[375927390,1753787443211,-441.57242035,0.00019452,2]
[375927392,1753787443221,-460.0,0.00019452,2]
[375927395,1753787443230,-460.0,0.00019452,2]
[375927398,1753787443240,-460.0,0.00019452,2]
[375927402,1753787443250,-912.41,0.00019452,2]
[375927405,1753787443259,-460.0,0.00019452,2]
[375927407,1753787443269,-460.0,0.00019452,2]
[375927409,1753787443278,-499.15,0.00019452,2]
[375927411,1753787443287,-460.0,0.00019452,2]
[375927412,1753787443296,-545.94,0.00019452,2]
[375927414,1753787443307,-3185.05,0.00019452,2]
[375927416,1753787443317,-963.37,0.00019452,2]
[375927418,1753787443326,-822.16,0.00019452,2]
[375927420,1753787443337,-460.0,0.00019452,2]
[375927422,1753787443347,-460.0,0.00019452,2]
[375927424,1753787443356,-8553.3,0.00019452,2]
[375927426,1753787443365,-460.0,0.00019452,2]
[375927428,1753787443375,-460.0,0.00019452,2]
[375927430,1753787443384,-5043.88,0.00019452,2]
[375927432,1753787443394,-891.66,0.00019452,2]
[375927434,1753787443403,-460.0,0.00019452,2]
[375927436,1753787443414,-460.0,0.00019452,2]
[375927438,1753787443423,-460.0,0.00019452,2]
[375927440,1753787443433,-460.0,0.00019452,2]
[375927442,1753787443443,-440.0,0.00019452,2]
[375927444,1753787443452,-460.0,0.00019452,2]
[375927446,1753787443462,-460.0,0.00019452,2]
[375927448,1753787443471,-460.0,0.00019452,2]
[375927450,1753787443481,-846.98,0.00019452,2]
[375927452,1753787443491,-460.0,0.00019452,2]
[375927454,1753787443500,-989.35,0.00019452,2]
[375927456,1753787443509,-460.0,0.00019452,2]
[375927458,1753787443518,-460.0,0.00019452,2]
[375927459,1753787443528,-460.0,0.00019452,2]
[375927460,1753787443537,-851.98,0.00019452,2]
[375927461,1753787443547,-656.81,0.00019452,2]
[375927462,1753787443556,-460.0,0.00019452,2]
[375927463,1753787443566,-858.02,0.00019452,2]
[375927464,1753787443575,-460.0,0.00019452,2]
[375927465,1753787443585,-460.0,0.00019452,2]
[375927466,1753787443594,-460.0,0.00019452,2]
[375927467,1753787443604,-537.18467328,0.00019452,2]
[375927468,1753787443613,-460.0,0.00019452,2]
[375927469,1753787443623,-460.0,0.00019452,2]
[375927470,1753787443633,-1211.98,0.00019452,2]
[375927471,1753787443643,-2652.76,0.00019452,2]
[375927472,1753787443652,-460.0,0.00019452,2]
[375927473,1753787443661,-460.0,0.00019452,2]
[375927474,1753787443670,-460.0,0.00019452,2]
[375927475,1753787443680,-4341.49,0.00019452,2]
[375927476,1753787443690,-460.0,0.00019452,2]
[375927477,1753787443700,-941.96,0.00019452,2]
[375927478,1753787443709,-460.0,0.00019452,2]
[375927479,1753787443718,-1602.07,0.00019452,2]
[375927481,1753787443727,-460.0,0.00019452,2]
[375927483,1753787443737,-460.0,0.00019452,2]
[375927485,1753787443747,-460.0,0.00019452,2]
[375927487,1753787443757,-460.0,0.00019452,2]
[375927489,1753787443767,-460.0,0.00019452,2]
[375927491,1753787443776,-460.0,0.00019452,2]
[375927493,1753787443786,-460.0,0.00019452,2]
[375927495,1753787443795,-460.0,0.00019452,2]
[375927497,1753787443805,-1159.05,0.00019452,2]
[375927499,1753787443814,-3991.99,0.00019452,2]
[375927501,1753787443824,-460.0,0.00019452,2]
[375927503,1753787443833,-584.42,0.00019452,2]
[375927505,1753787443844,-1242.75,0.00019452,2]
[375927507,1753787443858,-460.0,0.00019452,2]
[375927509,1753787443867,-460.0,0.00019452,2]
[375927511,1753787443877,-805.38,0.00019452,2]
[375927513,1753787443887,-570.34,0.00019452,2]
[375927515,1753787443897,-3092.36,0.00019452,2]
[375927517,1753787443908,-460.0,0.00019452,2]
[375927520,1753787443918,-1173.41,0.00019452,2]
[375927522,1753787443929,-460.0,0.00019452,2]
[375927524,1753787443939,-460.0,0.00019452,2]
[375927525,1753787443949,-1283.38,0.00019452,2]
[375927527,1753787443959,-471.23,0.00019452,2]
[375927529,1753787443969,-460.0,0.00019452,2]
[375927531,1753787443979,-460.0,0.00019452,2]
[375927533,1753787443988,-460.0,0.00019452,2]
[375927535,1753787443998,-460.0,0.00019452,2]
[375927537,1753787444008,-3185.9,0.00019452,2]
[375927539,1753787444018,-1107.71,0.00019452,2]
[375927541,1753787444028,-460.0,0.00019452,2]
[375927543,1753787444038,-460.0,0.00019452,2]
[375927545,1753787444048,-1028.98,0.00019452,2]
[375927547,1753787444058,-3420.68,0.00019452,2]
[375927549,1753787444067,-460.0,0.00019452,2]
[375927551,1753787444077,-885.34,0.00019452,2]
[375927553,1753787444086,-650.53,0.00019452,2]
[375927555,1753787444096,-460.0,0.00019452,2]
[375927557,1753787444106,-522.64,0.00019452,2]
[375927559,1753787444115,-460.0,0.00019452,2]
[375927561,1753787444124,-460.0,0.00019452,2]
[375927563,1753787444133,-1209.54,0.00019452,2]
[375927565,1753787444143,-793.46,0.00019452,2]
[375927567,1753787444152,-460.0,0.00019452,2]
[375927569,1753787444163,-460.0,0.00019452,2]
[375927571,1753787444172,-460.0,0.00019452,2]
[375927573,1753787444182,-3298.21,0.00019452,2]
[375927575,1753787444192,-1341.13,0.00019452,2]
[375927577,1753787444201,-460.0,0.00019452,2]
[375927579,1753787444211,-462.76788314,0.00019452,2]
[375927581,1753787444220,-1212.63,0.00019452,2]
[375927583,1753787444230,-209.07173973,0.00019614,2]
[375927585,1753787444239,-2382.37802425,0.00019694,2]
[375927587,1753787444248,-1000.0,0.00019721,2]
[375927589,1753787444258,-390.41225918,0.00019726,2]
[375927591,1753787444271,-470.51119168,0.00019726,2]
[375927593,1753787444281,-460.0,0.00019726,2]
[375927595,1753787444291,-460.0,0.00019726,2]
[375927597,1753787444300,-460.0,0.00019726,2]
[375927599,1753787444309,-460.0,0.00019726,2]
[375927601,1753787444318,-460.0,0.00019726,2]
[375927603,1753787444327,-460.0,0.00019726,2]
[375927604,1753787444336,-460.0,0.00019726,2]
[375927606,1753787444346,-460.0,0.00019726,2]
[375927608,1753787444356,-469.62,0.00019726,2]
[375927610,1753787444366,-162.59230177,0.00019726,2]
[375927612,1753787444376,-460.0,0.00019726,2]
[375927614,1753787444385,-460.0,0.00019726,2]
[375927616,1753787444395,-1282.06,0.00019726,2]
[375927619,1753787444405,-1087.12,0.00019726,2]
[375927621,1753787444416,-460.0,0.00019726,2]
[375927622,1753787444425,-567.15,0.00019726,2]
[375927624,1753787444434,-460.0,0.00019726,2]
[375927626,1753787444444,-460.0,0.00019726,2]
[375927628,1753787444454,-460.0,0.00019726,2]
[375927630,1753787444463,-631.64,0.00019726,2]
[375927632,1753787444473,-460.0,0.00019726,2]
[375927634,1753787444482,-1445.73,0.00019726,2]
[375927636,1753787444491,-661.27,0.00019726,2]
[375927638,1753787444500,-460.0,0.00019726,2]
[375927640,1753787444509,-460.0,0.00019726,2]
[375927642,1753787444519,-460.0,0.00019726,2]
[375927644,1753787444529,-460.0,0.00019726,2]
[375927646,1753787444538,-511.67,0.00019726,2]
[375927648,1753787444547,-9592.76,0.00019726,2]
[375927650,1753787444557,-2746.86,0.00019726,2]
[375927652,1753787444566,-496.68,0.00019726,2]
[375927654,1753787444575,-460.0,0.00019726,2]
[375927656,1753787444585,-460.0,0.00019726,2]
[375927658,1753787444594,-460.0,0.00019726,2]
[375927660,1753787444603,-460.0,0.00019726,2]
[375927662,1753787444612,-2156.19,0.00019726,2]
[375927664,1753787444622,-460.0,0.00019726,2]
[375927666,1753787444631,-460.0,0.00019726,2]
[375927668,1753787444640,-460.0,0.00019726,2]
[375927670,1753787444649,-485.48,0.00019726,2]
[375927672,1753787444660,-460.0,0.00019726,2]
[375927674,1753787444670,-460.0,0.00019726,2]
[375927676,1753787444680,-460.0,0.00019726,2]
[375927678,1753787444690,-460.0,0.00019726,2]
[375927680,1753787444699,-1243.28,0.00019726,2]
[375927681,1753787444708,-460.0,0.00019726,2]
[375927683,1753787444720,-460.0,0.00019726,2]
[375927685,1753787444729,-460.0,0.00019726,2]
[375927687,1753787444739,-460.0,0.00019726,2]
[375927689,1753787444748,-460.0,0.00019726,2]
[375927691,1753787444758,-643.2,0.00019726,2]
[375927693,1753787444767,-460.0,0.00019726,2]
[375927695,1753787444777,-669.42,0.00019726,2]
[375927697,1753787444786,-460.0,0.00019726,2]
[375927699,1753787444795,-2563.68,0.00019726,2]
[375927701,1753787444805,-460.0,0.00019726,2]
[375927703,1753787444814,-460.0,0.00019726,2]
[375927705,1753787444823,-460.0,0.00019726,2]
[375927707,1753787444833,-460.0,0.00019726,2]
[375927709,1753787444842,-460.0,0.00019726,2]
[375927711,1753787444856,-912.41,0.00019726,2]
[375927713,1753787444865,-460.0,0.00019726,2]
[375927715,1753787444875,-460.0,0.00019726,2]
[375927717,1753787444884,-499.15,0.00019726,2]
[375927719,1753787444894,-460.0,0.00019726,2]
[375927721,1753787444903,-545.94,0.00019726,2]
[375927723,1753787444914,-3185.05,0.00019726,2]
[375927725,1753787444923,-963.37,0.00019726,2]
[375927727,1753787444932,-822.16,0.00019726,2]
[375927729,1753787444942,-460.0,0.00019726,2]
[375927731,1753787444951,-460.0,0.00019726,2]
[375927733,1753787444961,-8553.3,0.00019726,2]
[375927735,1753787444970,-460.0,0.00019726,2]
[375927737,1753787444980,-5043.88,0.00019726,2]
[375927739,1753787444989,-460.0,0.00019726,2]
[375927741,1753787444999,-891.66,0.00019726,2]
[375927743,1753787445008,-460.0,0.00019726,2]
[375927745,1753787445018,-460.0,0.00019726,2]
[375927747,1753787445027,-460.0,0.00019726,2]
[375927749,1753787445037,-460.0,0.00019726,2]
[375927751,1753787445046,-846.98,0.00019726,2]
[375927753,1753787445056,-460.0,0.00019726,2]
[375927755,1753787445065,-989.35,0.00019726,2]
[375927757,1753787445075,-460.0,0.00019726,2]
[375927759,1753787445085,-460.0,0.00019726,2]
[375927761,1753787445094,-460.0,0.00019726,2]
[375927762,1753787445103,-851.98,0.00019726,2]
[375927768,1753787445149,-656.81,0.00019726,2]
[375927770,1753787445159,-460.0,0.00019726,2]
[375927772,1753787445169,-858.02,0.00019726,2]
[375927774,1753787445178,-460.0,0.00019726,2]
[375927776,1753787445187,-460.0,0.00019726,2]
[375927778,1753787445196,-393.67061827,0.00019726,2]
[375927780,1753787445206,-460.0,0.00019726,2]
[375927782,1753787445215,-1211.98,0.00019726,2]
[375927784,1753787445225,-2652.76,0.00019726,2]
[375927786,1753787445234,-460.0,0.00019726,2]
[375927788,1753787445243,-460.0,0.00019726,2]
[375927790,1753787445255,-460.0,0.00019726,2]
[375927792,1753787445264,-4341.49,0.00019726,2]
[375927794,1753787445273,-941.96,0.00019726,2]
[375927796,1753787445283,-460.0,0.00019726,2]
[375927798,1753787445292,-460.0,0.00019726,2]
[375927800,1753787445302,-1602.07,0.00019726,2]
[375927801,1753787445311,-460.0,0.00019726,2]
[375927803,1753787445320,-460.0,0.00019726,2]
[375927805,1753787445329,-460.0,0.00019726,2]
[375927807,1753787445339,-233.38921447,0.00019726,2]
[375927810,1753787445348,-460.0,0.00019726,2]
[375927813,1753787445357,-460.0,0.00019726,2]
[375927815,1753787445367,-1159.05,0.00019726,2]
[375927817,1753787445376,-3991.99,0.00019726,2]
[375927819,1753787445385,-584.42,0.00019726,2]
[375927821,1753787445394,-1242.75,0.00019726,2]
[375927824,1753787445404,-460.0,0.00019726,2]
[375927826,1753787445414,-460.0,0.00019726,2]
[375927828,1753787445423,-805.38,0.00019726,2]
[375927830,1753787445432,-570.34,0.00019726,2]
[375927832,1753787445441,-3092.36,0.00019726,2]
[375927834,1753787445451,-277.15722422,0.00019726,2]
[375927836,1753787445459,-1173.41,0.00019726,2]
[375927838,1753787445468,-460.0,0.00019726,2]
[375927840,1753787445478,-460.0,0.00019726,2]
[375927842,1753787445487,-1283.38,0.00019726,2]
[375927844,1753787445496,-460.0,0.00019726,2]
[375927846,1753787445505,-440.42926349,0.00019726,2]
[375927848,1753787445514,-3185.9,0.00019726,2]
[375927850,1753787445523,-1107.71,0.00019726,2]
[375927851,1753787445532,-460.0,0.00019726,2]
[375927853,1753787445541,-460.0,0.00019726,2]
[375927855,1753787445551,-1028.98,0.00019726,2]
[375927857,1753787445560,-3420.68,0.00019726,2]
[375927859,1753787445569,-885.34,0.00019726,2]
[375927861,1753787445577,-650.53,0.00019726,2]
[375927863,1753787445587,-460.0,0.00019726,2]
[375927865,1753787445596,-522.64,0.00019726,2]
[375927867,1753787445605,-460.0,0.00019726,2]
[375927869,1753787445615,-1209.54,0.00019726,2]
[375927871,1753787445624,-793.46,0.00019726,2]
[375927873,1753787445633,-460.0,0.00019726,2]
[375927875,1753787445642,-460.0,0.00019726,2]
[375927877,1753787445651,-460.0,0.00019726,2]
[375927879,1753787445661,-3298.21,0.00019726,2]
[375927881,1753787445671,-1341.13,0.00019726,2]
[375927883,1753787445680,-460.0,0.00019726,2]
[375927885,1753787445689,-1212.63,0.00019726,2]
[375927887,1753787445699,-828.30554838,0.00019751,2]
[375927889,1753787445709,-160.0,0.00019782,2]
[375927891,1753787445719,-160.0,0.00019838,2]
[375927893,1753787445728,-841.06558547,0.00019838,2]
[375927895,1753787445737,-160.0,0.00019838,2]
[375927897,1753787445747,-160.0,0.00019838,2]
[375927899,1753787445756,-460.5085953,0.00019838,2]
[375927901,1753787445764,-160.0,0.00019838,2]
[375927903,1753787445774,-216.1031716,0.00019838,2]
[375927905,1753787445783,-160.0,0.00019838,2]
[375927907,1753787445792,-12637.12721421,0.00019838,2]
[375927909,1753787445801,-214.91980558,0.00019838,2]
[375927911,1753787445810,-526.67226028,0.00019844,2]
[375927913,1753787445820,-1770.85450506,0.00019901,2]
[375927914,1753787445829,-420.0,0.00019933,2]
[375927916,1753787445838,-1680.0,0.00019934,2]
[375927918,1753787445850,-420.0,0.00019934,2]
[375927920,1753787445859,-500.0,0.00019973,2]
[375927922,1753787445869,-500.0,0.00019973,2]
[375927924,1753787445878,-500.0,0.00019973,2]
[375927926,1753787445889,-156.566386,0.00019975,3]
[375927928,1753787445898,-151.0,0.0002,2]
[375927930,1753787445907,-460.0,0.0002,2]
[375927932,1753787445920,-151.0,0.0002,2]
[375927934,1753787445929,-288.959451,0.0002,2]
[375927936,1753787445938,-288.959451,0.0002,2]
[375927938,1753787445947,-460.0,0.0002,2]
[375927940,1753787445956,-460.0,0.0002,2]
[375927942,1753787445965,-161.520422,0.0002,2]
[375927944,1753787445974,-161.520422,0.0002,2]
[375927946,1753787445983,-460.0,0.0002,2]
[375927948,1753787445993,-460.0,0.0002,2]
[375927950,1753787446002,-460.0,0.0002,2]
[375927952,1753787446011,-460.0,0.0002,2]
[375927954,1753787446020,-151.0,0.0002,2]
[375927956,1753787446030,-460.0,0.0002,2]
[375927958,1753787446039,-469.62,0.0002,2]
[375927960,1753787446049,-460.0,0.0002,2]
[375927962,1753787446058,-460.0,0.0002,2]
[375927964,1753787446071,-1282.06,0.0002,2]
[375927965,1753787446080,-1087.12,0.0002,2]
[375927966,1753787446089,-460.0,0.0002,2]
[375927967,1753787446099,-567.15,0.0002,2]
[375927968,1753787446107,-460.0,0.0002,2]
[375927969,1753787446116,-460.0,0.0002,2]
[375927970,1753787446126,-460.0,0.0002,2]
[375927972,1753787446135,-631.64,0.0002,2]
[375927974,1753787446144,-460.0,0.0002,2]
[375927976,1753787446154,-1445.73,0.0002,2]
[375927978,1753787446163,-661.27,0.0002,2]
[375927980,1753787446172,-460.0,0.0002,2]
[375927981,1753787446183,-460.0,0.0002,2]
[375927983,1753787446192,-460.0,0.0002,2]
[375927985,1753787446202,-460.0,0.0002,2]
[375927987,1753787446210,-511.67,0.0002,2]
[375927989,1753787446219,-9592.76,0.0002,2]
[375927991,1753787446229,-2746.86,0.0002,2]
[375927993,1753787446238,-496.68,0.0002,2]
[375927995,1753787446247,-460.0,0.0002,2]
[375927997,1753787446256,-460.0,0.0002,2]
[375927999,1753787446265,-460.0,0.0002,2]
[375928001,1753787446274,-460.0,0.0002,2]
[375928003,1753787446283,-2156.19,0.0002,2]
[375928005,1753787446292,-460.0,0.0002,2]
[375928007,1753787446301,-460.0,0.0002,2]
[375928009,1753787446310,-460.0,0.0002,2]
[375928011,1753787446319,-485.48,0.0002,2]
[375928013,1753787446328,-460.0,0.0002,2]
[375928015,1753787446338,-460.0,0.0002,2]
[375928017,1753787446347,-460.0,0.0002,2]
[375928019,1753787446356,-460.0,0.0002,2]
[375928021,1753787446366,-1243.28,0.0002,2]
[375928023,1753787446375,-460.0,0.0002,2]
[375928025,1753787446385,-460.0,0.0002,2]
[375928028,1753787446394,-460.0,0.0002,2]
[375928030,1753787446404,-460.0,0.0002,2]
[375928031,1753787446414,-460.0,0.0002,2]
[375928034,1753787446423,-643.2,0.0002,2]
[375928035,1753787446432,-460.0,0.0002,2]
[375928037,1753787446441,-669.42,0.0002,2]
[375928039,1753787446449,-460.0,0.0002,2]
[375928041,1753787446458,-2563.68,0.0002,2]
[375928043,1753787446467,-460.0,0.0002,2]
[375928045,1753787446476,-460.0,0.0002,2]
[375928047,1753787446486,-460.0,0.0002,2]
[375928049,1753787446495,-460.0,0.0002,2]
[375928051,1753787446504,-460.0,0.0002,2]
[375928054,1753787446513,-912.41,0.0002,2]
[375928056,1753787446523,-460.0,0.0002,2]
[375928058,1753787446532,-460.0,0.0002,2]
[375928060,1753787446542,-499.15,0.0002,2]
[375928062,1753787446551,-460.0,0.0002,2]
[375928064,1753787446560,-545.94,0.0002,2]
[375928066,1753787446569,-3185.05,0.0002,2]
[375928068,1753787446578,-963.37,0.0002,2]
[375928069,1753787446587,-822.16,0.0002,2]
[375928072,1753787446597,-460.0,0.0002,2]
[375928074,1753787446607,-460.0,0.0002,2]
[375928076,1753787446617,-4201.76175459,0.0002,2]
[375928096,1753787446798,-4351.53824541,0.0002,2]
[375928098,1753787446808,-460.0,0.0002,2]
[375928100,1753787446819,-5043.88,0.0002,2]
[375928102,1753787446829,-460.0,0.0002,2]
[375928104,1753787446839,-891.66,0.0002,2]
[375928106,1753787446851,-513.6095809,0.0002,2]
[375928108,1753787446861,-460.0,0.0002,2]
[375928110,1753787446870,-460.0,0.0002,2]
[375928112,1753787446880,-452.93764178,0.0002,2]
[375928114,1753787446891,-846.98,0.0002,2]
[375928116,1753787446901,-460.0,0.0002,2]
[375928118,1753787446911,-460.0,0.0002,2]
[375928121,1753787446925,-989.35,0.0002,2]
[375928123,1753787446935,-460.0,0.0002,2]
[375928125,1753787446944,-460.0,0.0002,2]
[375928127,1753787446954,-851.98,0.0002,2]
[375928129,1753787446963,-656.81,0.0002,2]
[375928131,1753787446973,-460.0,0.0002,2]
[375928133,1753787446982,-858.02,0.0002,2]
[375928135,1753787446992,-460.0,0.0002,2]
[375928136,1753787447001,-471.66945832,0.0002,2]
[375928139,1753787447011,-460.0,0.0002,2]
[375928141,1753787447020,-1211.98,0.0002,2]
[375928143,1753787447030,-2652.76,0.0002,2]
[375928145,1753787447039,-460.0,0.0002,2]
[375928147,1753787447049,-460.0,0.0002,2]
[375928149,1753787447059,-460.0,0.0002,2]
[375928151,1753787447068,-4341.49,0.0002,2]
[375928153,1753787447078,-941.96,0.0002,2]
[375928155,1753787447087,-460.0,0.0002,2]
[375928157,1753787447096,-460.0,0.0002,2]
[375928159,1753787447106,-1602.07,0.0002,2]
[375928161,1753787447115,-460.0,0.0002,2]
[375928163,1753787447124,-460.0,0.0002,2]
[375928165,1753787447134,-460.0,0.0002,2]
[375928167,1753787447143,-460.0,0.0002,2]
[375928169,1753787447153,-1159.05,0.0002,2]
[375928171,1753787447164,-460.0,0.0002,2]
[375928173,1753787447174,-3991.99,0.0002,2]
[375928175,1753787447183,-584.42,0.0002,2]
[375928177,1753787447193,-1242.75,0.0002,2]
[375928179,1753787447202,-467.02692035,0.0002,2]
[375928181,1753787447212,-460.0,0.0002,2]
[375928183,1753787447222,-805.38,0.0002,2]
[375928185,1753787447231,-570.34,0.0002,2]
[375928187,1753787447241,-3092.36,0.0002,2]
[375928189,1753787447250,-1173.41,0.0002,2]
[375928191,1753787447260,-460.0,0.0002,2]
[375928193,1753787447269,-1283.38,0.0002,2]
[375928195,1753787447279,-460.0,0.0002,2]
[375928197,1753787447290,-460.0,0.0002,2]
[375928199,1753787447301,-3185.9,0.0002,2]
[375928201,1753787447311,-1107.71,0.0002,2]
[375928203,1753787447321,-460.0,0.0002,2]
[375928205,1753787447331,-460.0,0.0002,2]
[375928207,1753787447341,-1028.98,0.0002,2]
[375928209,1753787447351,-3420.68,0.0002,2]
[375928211,1753787447360,-885.34,0.0002,2]
[375928213,1753787447371,-650.53,0.0002,2]
[375928215,1753787447382,-460.0,0.0002,2]
[375928217,1753787447392,-522.64,0.0002,2]
[375928219,1753787447402,-460.0,0.0002,2]
[375928222,1753787447412,-1209.54,0.0002,2]
[375928223,1753787447421,-793.46,0.0002,2]
[375928225,1753787447431,-460.0,0.0002,2]
[375928227,1753787447440,-460.0,0.0002,2]
[375928230,1753787447450,-460.0,0.0002,2]
[375928232,1753787447459,-3298.21,0.0002,2]
[375928234,1753787447469,-1341.13,0.0002,2]
[375928236,1753787447479,-460.0,0.0002,2]
[375928238,1753787447489,-1212.63,0.0002,2]
[375928240,1753787447498,-1680.0,0.00020031,2]
[375928242,1753787447508,-874.8466021,0.00020181,2]
[375928244,1753787447518,-525.791497,0.00020187,2]
[375928246,1753787447527,-1500.0,0.00020268,2]
[375928248,1753787447538,-151.0,0.00020273,2]
[375928250,1753787447547,-460.0,0.00020273,2]
[375928252,1753787447557,-151.0,0.00020273,2]
[375928254,1753787447566,-288.959451,0.00020273,2]
[375928256,1753787447577,-288.959451,0.00020273,2]
[375928258,1753787447587,-460.0,0.00020273,2]
[375928260,1753787447596,-460.0,0.00020273,2]
[375928262,1753787447605,-161.520422,0.00020273,2]
[375928264,1753787447615,-161.520422,0.00020273,2]
[375928267,1753787447624,-460.0,0.00020273,2]
[375928268,1753787447634,-460.0,0.00020273,2]
[375928271,1753787447643,-460.0,0.00020273,2]
[375928272,1753787447653,-460.0,0.00020273,2]
[375928274,1753787447662,-151.0,0.00020273,2]
[375928277,1753787447674,-460.0,0.00020273,2]
[375928279,1753787447684,-469.62,0.00020273,2]
[375928281,1753787447694,-460.0,0.00020273,2]
[375928283,1753787447704,-460.0,0.00020273,2]
[375928285,1753787447714,-1282.06,0.00020273,2]
[375928287,1753787447725,-1087.12,0.00020273,2]
[375928289,1753787447734,-460.0,0.00020273,2]
[375928290,1753787447744,-567.15,0.00020273,2]
[375928293,1753787447754,-460.0,0.00020273,2]
[375928295,1753787447764,-460.0,0.00020273,2]
[375928297,1753787447774,-460.0,0.00020273,2]
[375928299,1753787447784,-631.64,0.00020273,2]
[375928301,1753787447794,-498.75854964,0.00020273,2]
[375928303,1753787447803,-1445.73,0.00020273,2]
[375928305,1753787447813,-661.27,0.00020273,2]
[375928307,1753787447823,-460.0,0.00020273,2]
[375928309,1753787447832,-460.0,0.00020273,2]
[375928311,1753787447841,-460.0,0.00020273,2]
[375928313,1753787447854,-460.0,0.00020273,2]
[375928315,1753787447863,-511.67,0.00020273,2]
[375928317,1753787447872,-9592.76,0.00020273,2]
[375928319,1753787447882,-2746.86,0.00020273,2]
[375928321,1753787447892,-496.68,0.00020273,2]
[375928323,1753787447901,-460.0,0.00020273,2]
[375928325,1753787447910,-460.0,0.00020273,2]
[375928327,1753787447923,-460.0,0.00020273,2]
[375928329,1753787447933,-460.0,0.00020273,2]
[375928331,1753787447944,-2156.19,0.00020273,2]
[375928333,1753787447953,-460.0,0.00020273,2]
[375928335,1753787447963,-460.0,0.00020273,2]
[375928337,1753787447972,-460.0,0.00020273,2]
[375928339,1753787447981,-485.48,0.00020273,2]
[375928341,1753787447990,-460.0,0.00020273,2]
[375928343,1753787448000,-460.0,0.00020273,2]
[375928345,1753787448011,-460.0,0.00020273,2]
[375928347,1753787448020,-1243.28,0.00020273,2]
[375928349,1753787448031,-460.0,0.00020273,2]
[375928351,1753787448040,-460.0,0.00020273,2]
[375928353,1753787448050,-460.0,0.00020273,2]
[375928355,1753787448059,-460.0,0.00020273,2]
[375928357,1753787448070,-460.0,0.00020273,2]
[375928359,1753787448079,-643.2,0.00020273,2]
[375928361,1753787448089,-460.0,0.00020273,2]
[375928364,1753787448099,-669.42,0.00020273,2]
[375928366,1753787448110,-460.0,0.00020273,2]
[375928368,1753787448120,-2563.68,0.00020273,2]
[375928370,1753787448130,-460.0,0.00020273,2]
[375928372,1753787448140,-460.0,0.00020273,2]
[375928374,1753787448151,-460.0,0.00020273,2]